[Event "*** Titled Tuesday Blitz"]
[Site "Chess.com"]
[Date "2020.10.27"]
[Round "11"]
[White "Sergienko_Sergey"]
[Black "Dr_crypt"]
[Result "1-0"]
[WhiteElo "2338"]
[BlackElo "2444"]
[TimeControl "180+1"]
[EndTime "12:04:39 PDT"]
[Termination "Sergienko_Sergey won by resignation"]

1. e4 {[%clk 0:02:59.8]} 1... e5 {[%clk 0:02:59.5]} 2. Nf3 {[%clk 0:02:58]} 2...
Nc6 {[%clk 0:03:00.1]} 3. Bb5 {[%clk 0:02:56.5]} 3... a6 {[%clk 0:02:57.5]} 4.
Ba4 {[%clk 0:02:54.9]} 4... Nf6 {[%clk 0:02:57.5]} 5. Bxc6 {[%clk 0:02:54.3]}
5... dxc6 {[%clk 0:02:55.4]} 6. d3 {[%clk 0:02:54.1]} 6... Bd6 {[%clk
0:02:53.3]} 7. Nbd2 {[%clk 0:02:53.5]} 7... Nd7 {[%clk 0:02:48]} 8. Nc4 {[%clk
0:02:50.8]} 8... O-O {[%clk 0:02:47.6]} 9. O-O {[%clk 0:02:49.8]} 9... f6 {[%clk
0:02:45.7]} 10. h3 {[%clk 0:02:46.4]} 10... Nc5 {[%clk 0:02:44.1]} 11. Nh4
{[%clk 0:02:41.3]} 11... Be6 {[%clk 0:02:38.1]} 12. Ne3 {[%clk 0:02:34.1]} 12...
a5 {[%clk 0:02:35.8]} 13. Nhf5 {[%clk 0:02:32]} 13... g6 {[%clk 0:02:32.8]} 14.
Nxd6 {[%clk 0:02:28.9]} 14... cxd6 {[%clk 0:02:31.3]} 15. a4 {[%clk 0:02:21.3]}
15... g5 {[%clk 0:02:28.3]} 16. Nf5 {[%clk 0:02:07.1]} 16... Bxf5 {[%clk
0:02:21.9]} 17. exf5 {[%clk 0:02:07.1]} 17... Kg7 {[%clk 0:02:09.8]} 18. b3
{[%clk 0:02:00.4]} 18... d5 {[%clk 0:02:07.7]} 19. Ba3 {[%clk 0:01:52.3]} 19...
b6 {[%clk 0:02:06]} 20. d4 {[%clk 0:01:46.7]} 20... exd4 {[%clk 0:02:05.6]} 21.
Qxd4 {[%clk 0:01:45.7]} 21... Qd6 {[%clk 0:02:06]} 22. f4 {[%clk 0:01:41.8]}
22... h6 {[%clk 0:02:02.4]} 23. fxg5 {[%clk 0:01:40]} 23... hxg5 {[%clk
0:02:02.2]} 24. Rae1 {[%clk 0:01:35.4]} 24... Rfe8 {[%clk 0:02:01]} 25. Qg4
{[%clk 0:01:22]} 25... Qd7 {[%clk 0:01:39.1]} 26. Bb2 {[%clk 0:01:16.9]} 26...
Ne4 {[%clk 0:00:18.1]} 27. Rxe4 {[%clk 0:01:15.7]} 27... Rxe4 {[%clk 0:00:18]}
28. Qxg5+ {[%clk 0:01:15.2]} 28... Kf7 {[%clk 0:00:18.2]} 29. Qxf6+ {[%clk
0:01:12.8]} 29... Ke8 {[%clk 0:00:18.7]} 30. Qh8+ {[%clk 0:01:10.6]} 30... Ke7
{[%clk 0:00:19.1]} 31. Qxa8 {[%clk 0:01:07.5]} 1-0

[Event "*** Titled Tuesday Blitz"]
[Site "Chess.com"]
[Date "2020.10.27"]
[Round "11"]
[White "szefru"]
[Black "CM_rui"]
[Result "1-0"]
[WhiteElo "2274"]
[BlackElo "2350"]
[TimeControl "180+1"]
[EndTime "12:04:44 PDT"]
[Termination "szefru won by checkmate"]

1. e4 {[%clk 0:02:59.5]} 1... e5 {[%clk 0:02:58.8]} 2. Nf3 {[%clk 0:02:59]} 2...
Nc6 {[%clk 0:02:58.7]} 3. Bb5 {[%clk 0:02:58.8]} 3... a6 {[%clk 0:02:58.6]} 4.
Ba4 {[%clk 0:02:58.6]} 4... Nf6 {[%clk 0:02:58.8]} 5. Qe2 {[%clk 0:02:58.4]}
5... b5 {[%clk 0:02:58.1]} 6. Bb3 {[%clk 0:02:58.5]} 6... Be7 {[%clk 0:02:58.6]}
7. O-O {[%clk 0:02:57]} 7... O-O {[%clk 0:02:59.2]} 8. c3 {[%clk 0:02:57.2]}
8... d6 {[%clk 0:02:58.1]} 9. h3 {[%clk 0:02:57.5]} 9... Na5 {[%clk 0:02:58.2]}
10. Bc2 {[%clk 0:02:57.4]} 10... c5 {[%clk 0:02:58.8]} 11. Rd1 {[%clk
0:02:57.4]} 11... h6 {[%clk 0:02:56.9]} 12. d4 {[%clk 0:02:48.7]} 12... Qc7
{[%clk 0:02:56.3]} 13. a4 {[%clk 0:02:38.3]} 13... Bd7 {[%clk 0:02:49.7]} 14.
dxe5 {[%clk 0:02:22.8]} 14... dxe5 {[%clk 0:02:48.3]} 15. Nbd2 {[%clk
0:02:19.6]} 15... c4 {[%clk 0:02:39.9]} 16. Nf1 {[%clk 0:02:16.3]} 16... Bc5
{[%clk 0:02:35.2]} 17. Be3 {[%clk 0:02:12.8]} 17... Bxe3 {[%clk 0:02:33.4]} 18.
Nxe3 {[%clk 0:02:12]} 18... Nc6 {[%clk 0:02:31.7]} 19. Nd5 {[%clk 0:02:01]}
19... Qd8 {[%clk 0:02:19.3]} 20. axb5 {[%clk 0:01:57.2]} 20... axb5 {[%clk
0:02:15.9]} 21. Rxa8 {[%clk 0:01:57.2]} 21... Qxa8 {[%clk 0:02:14.4]} 22. Nxf6+
{[%clk 0:01:57.5]} 22... gxf6 {[%clk 0:02:13.7]} 23. Rxd7 {[%clk 0:01:57.8]}
23... Qa1+ {[%clk 0:02:11.5]} 24. Bd1 {[%clk 0:01:42.6]} 24... Na5 {[%clk
0:02:07.3]} 25. Nh4 {[%clk 0:01:40.5]} 25... Nb3 {[%clk 0:02:03.4]} 26. Nf5
{[%clk 0:01:37.5]} 26... Kh8 {[%clk 0:01:57.6]} 27. Qh5 {[%clk 0:01:35.2]} 27...
Qc1 {[%clk 0:01:57]} 28. Nxh6 {[%clk 0:01:25.1]} 28... Kg7 {[%clk 0:01:48.5]}
29. Nf5+ {[%clk 0:01:24.4]} 29... Kg8 {[%clk 0:01:48.6]} 30. Nh6+ {[%clk
0:01:09.4]} 30... Kg7 {[%clk 0:01:45]} 31. Nf5+ {[%clk 0:01:02.2]} 31... Kg8
{[%clk 0:01:44.6]} 32. Qg4+ {[%clk 0:01:02.4]} 32... Qg5 {[%clk 0:01:42.5]} 33.
Qxg5+ {[%clk 0:01:03]} 33... fxg5 {[%clk 0:01:43.4]} 34. Bxb3 {[%clk 0:01:03]}
34... cxb3 {[%clk 0:01:44.3]} 35. Rd5 {[%clk 0:01:03.2]} 35... Ra8 {[%clk
0:01:44.8]} 36. Rxb5 {[%clk 0:01:01.9]} 36... Ra1+ {[%clk 0:01:45.7]} 37. Kh2
{[%clk 0:00:59.5]} 37... Rb1 {[%clk 0:01:45.7]} 38. Rxb3 {[%clk 0:00:59.1]}
38... Kh7 {[%clk 0:01:46.6]} 39. c4 {[%clk 0:00:58.6]} 39... Kg6 {[%clk
0:01:47.5]} 40. c5 {[%clk 0:00:58.4]} 40... Rc1 {[%clk 0:01:48]} 41. Rc3 {[%clk
0:00:58.5]} 41... Rb1 {[%clk 0:01:48]} 42. b3 {[%clk 0:00:56.4]} 42... Kf6
{[%clk 0:01:44.7]} 43. c6 {[%clk 0:00:56.6]} 43... Ra1 {[%clk 0:01:44.9]} 44. c7
{[%clk 0:00:56.7]} 44... Ra8 {[%clk 0:01:45.8]} 45. c8=Q {[%clk 0:00:56.4]}
45... Rxc8 {[%clk 0:01:46.7]} 46. Rxc8 {[%clk 0:00:57]} 46... Kg6 {[%clk
0:01:47.6]} 47. b4 {[%clk 0:00:55.5]} 47... f6 {[%clk 0:01:48.5]} 48. b5 {[%clk
0:00:54.8]} 48... Kh5 {[%clk 0:01:49.4]} 49. b6 {[%clk 0:00:53.8]} 49... g4
{[%clk 0:01:50.3]} 50. b7 {[%clk 0:00:51.7]} 50... Kg5 {[%clk 0:01:51.2]} 51.
b8=Q {[%clk 0:00:49.2]} 51... Kf4 {[%clk 0:01:52.1]} 52. Qb4 {[%clk 0:00:37.7]}
52... gxh3 {[%clk 0:01:51.5]} 53. g3+ {[%clk 0:00:37.7]} 53... Kf3 {[%clk
0:01:49.6]} 54. Rc3+ {[%clk 0:00:36.2]} 54... Kg4 {[%clk 0:01:49.9]} 55. f3+
{[%clk 0:00:35.6]} 55... Kh5 {[%clk 0:01:48.8]} 56. Qf8 {[%clk 0:00:34.6]} 56...
Kg6 {[%clk 0:01:48.9]} 57. Qg7+ {[%clk 0:00:34.3]} 57... Kh5 {[%clk 0:01:49.8]}
58. Qh6# {[%clk 0:00:33.7]} 1-0

[Event "*** Titled Tuesday Blitz"]
[Site "Chess.com"]
[Date "2020.10.27"]
[Round "11"]
[White "Ze-Pequeno"]
[Black "zverr1"]
[Result "1-0"]
[WhiteElo "2333"]
[BlackElo "2431"]
[TimeControl "180+1"]
[EndTime "12:04:47 PDT"]
[Termination "Ze-Pequeno won by checkmate"]

1. e4 {[%clk 0:02:59.6]} 1... e6 {[%clk 0:02:58.9]} 2. d4 {[%clk 0:02:59.4]}
2... d5 {[%clk 0:02:58.2]} 3. Nc3 {[%clk 0:02:59.8]} 3... Nf6 {[%clk 0:02:57.3]}
4. Bg5 {[%clk 0:02:59]} 4... Bb4 {[%clk 0:02:54.8]} 5. e5 {[%clk 0:02:59]} 5...
h6 {[%clk 0:02:54.2]} 6. Bd2 {[%clk 0:02:59.3]} 6... Bxc3 {[%clk 0:02:53.9]} 7.
bxc3 {[%clk 0:03:00.2]} 7... Ne4 {[%clk 0:02:54.8]} 8. Qg4 {[%clk 0:03:00.6]}
8... Kf8 {[%clk 0:02:55.3]} 9. Bd3 {[%clk 0:03:00.7]} 9... Nxd2 {[%clk
0:02:55.7]} 10. Kxd2 {[%clk 0:03:01.6]} 10... c5 {[%clk 0:02:56.6]} 11. dxc5
{[%clk 0:03:02.3]} 11... Nd7 {[%clk 0:02:55.6]} 12. Nf3 {[%clk 0:03:02.1]} 12...
Qa5 {[%clk 0:02:52.6]} 13. Rhe1 {[%clk 0:03:01.4]} 13... Nxc5 {[%clk 0:02:49.9]}
14. Re3 {[%clk 0:02:54.4]} 14... Bd7 {[%clk 0:02:45.3]} 15. Nd4 {[%clk
0:02:45.7]} 15... Rc8 {[%clk 0:02:38.7]} 16. Rc1 {[%clk 0:02:32.6]} 16... Qxa2
{[%clk 0:02:25.9]} 17. Rg3 {[%clk 0:02:25.1]} 17... Rg8 {[%clk 0:02:19.9]} 18.
Bh7 {[%clk 0:02:13.9]} 18... Ne4+ {[%clk 0:01:56.1]} 19. Bxe4 {[%clk 0:02:11.7]}
19... dxe4 {[%clk 0:01:57]} 20. Qxe4 {[%clk 0:02:11.7]} 20... Qd5 {[%clk
0:01:55.4]} 21. Qf4 {[%clk 0:01:52.8]} 21... Rc5 {[%clk 0:01:46]} 22. Rf3 {[%clk
0:01:43.8]} 22... Be8 {[%clk 0:01:41.1]} 23. Re3 {[%clk 0:01:25.6]} 23... Ke7
{[%clk 0:01:36.6]} 24. Rce1 {[%clk 0:00:55.7]} 24... a5 {[%clk 0:01:32.8]} 25.
Rd3 {[%clk 0:00:54.1]} 25... Qxg2 {[%clk 0:01:28.9]} 26. Nf3 {[%clk 0:00:43]}
26... Qg6 {[%clk 0:00:50.9]} 27. Qd4 {[%clk 0:00:31.5]} 27... Rd5 {[%clk
0:00:48.6]} 28. Qb6 {[%clk 0:00:31.8]} 28... Rxd3+ {[%clk 0:00:44.5]} 29. cxd3
{[%clk 0:00:31.4]} 29... Qf5 {[%clk 0:00:36.1]} 30. Qd6# {[%clk 0:00:29.6]} 1-0

[Event "*** Titled Tuesday Blitz"]
[Site "Chess.com"]
[Date "2020.10.27"]
[Round "11"]
[White "GMBenjaminBok"]
[Black "AndrewMaco"]
[Result "1-0"]
[WhiteElo "2926"]
[BlackElo "2670"]
[TimeControl "180+1"]
[EndTime "12:05:00 PDT"]
[Termination "GMBenjaminBok won by resignation"]

1. d4 {[%clk 0:03:00.9]} 1... Nf6 {[%clk 0:02:58.2]} 2. c4 {[%clk 0:03:00.5]}
2... e6 {[%clk 0:02:57.8]} 3. Nf3 {[%clk 0:03:00.6]} 3... d5 {[%clk 0:02:57.5]}
4. Nc3 {[%clk 0:03:00.6]} 4... Bb4 {[%clk 0:02:57.4]} 5. cxd5 {[%clk 0:03:00.5]}
5... exd5 {[%clk 0:02:58.3]} 6. Bf4 {[%clk 0:03:00.7]} 6... c6 {[%clk
0:02:56.1]} 7. e3 {[%clk 0:02:59.9]} 7... Bf5 {[%clk 0:02:55.6]} 8. Qb3 {[%clk
0:02:50.5]} 8... Qb6 {[%clk 0:02:36.8]} 9. Nh4 {[%clk 0:02:50.3]} 9... Be6
{[%clk 0:02:16.8]} 10. Bd3 {[%clk 0:02:49]} 10... Ne4 {[%clk 0:02:16.8]} 11. O-O
{[%clk 0:02:18.7]} 11... g5 {[%clk 0:02:08.1]} 12. Na4 {[%clk 0:01:51.4]} 12...
Qa5 {[%clk 0:01:40.5]} 13. a3 {[%clk 0:01:51.1]} 13... Be7 {[%clk 0:01:39.3]}
14. Qxb7 {[%clk 0:01:09]} 14... gxf4 {[%clk 0:01:37]} 15. Qxa8 {[%clk 0:01:07]}
15... O-O {[%clk 0:01:37.2]} 16. Bxe4 {[%clk 0:00:48.5]} 16... Qxa4 {[%clk
0:01:25.2]} 17. Nf5 {[%clk 0:00:44.2]} 17... Bf6 {[%clk 0:00:43.6]} 18. Bb1
{[%clk 0:00:41.4]} 18... Qb5 {[%clk 0:00:43.3]} 19. Qxa7 {[%clk 0:00:40.3]}
19... Nd7 {[%clk 0:00:37]} 20. b4 {[%clk 0:00:29.9]} 20... Bd8 {[%clk
0:00:22.3]} 21. Bc2 {[%clk 0:00:18.8]} 21... Bb6 {[%clk 0:00:20.9]} 22. Qa4
{[%clk 0:00:15.9]} 22... Qxa4 {[%clk 0:00:20.7]} 23. Ne7+ {[%clk 0:00:16.6]}
23... Kh8 {[%clk 0:00:19.6]} 24. Bxa4 {[%clk 0:00:17.5]} 24... fxe3 {[%clk
0:00:16.9]} 25. fxe3 {[%clk 0:00:18.4]} 25... Nf6 {[%clk 0:00:17.2]} 1-0

[Event "*** Titled Tuesday Blitz"]
[Site "Chess.com"]
[Date "2020.10.27"]
[Round "11"]
[White "AnishOnYoutube"]
[Black "A-Fier"]
[Result "1/2-1/2"]
[WhiteElo "2955"]
[BlackElo "2774"]
[TimeControl "180+1"]
[EndTime "12:05:02 PDT"]
[Termination "Game drawn by agreement"]

1. d4 {[%clk 0:03:00.9]} 1... Nf6 {[%clk 0:03:00.2]} 2. c4 {[%clk 0:03:01]} 2...
c5 {[%clk 0:03:00.9]} 3. d5 {[%clk 0:03:00.6]} 3... e6 {[%clk 0:03:01.5]} 4. Nc3
{[%clk 0:03:00.5]} 4... exd5 {[%clk 0:03:02.3]} 5. cxd5 {[%clk 0:03:01.1]} 5...
d6 {[%clk 0:03:02.9]} 6. Nf3 {[%clk 0:03:00]} 6... g6 {[%clk 0:03:03.2]} 7. h3
{[%clk 0:03:00.4]} 7... Bg7 {[%clk 0:03:03.2]} 8. e4 {[%clk 0:03:01.1]} 8... O-O
{[%clk 0:03:03.3]} 9. Bd3 {[%clk 0:03:01.6]} 9... b5 {[%clk 0:03:03.7]} 10. Nxb5
{[%clk 0:02:54.6]} 10... Re8 {[%clk 0:03:03.4]} 11. O-O {[%clk 0:02:54.2]} 11...
Nxe4 {[%clk 0:03:03.6]} 12. Bxe4 {[%clk 0:02:51.6]} 12... Rxe4 {[%clk
0:03:02.5]} 13. Nc3 {[%clk 0:02:40.5]} 13... Re8 {[%clk 0:03:00.4]} 14. Re1
{[%clk 0:02:32.7]} 14... Rxe1+ {[%clk 0:02:59.6]} 15. Qxe1 {[%clk 0:02:32.3]}
15... Nd7 {[%clk 0:02:59.8]} 16. Bf4 {[%clk 0:02:24.2]} 16... Nf6 {[%clk
0:02:58.4]} 17. Qd2 {[%clk 0:02:17.6]} 17... Bb7 {[%clk 0:02:53]} 18. Re1 {[%clk
0:02:17.7]} 18... Qd7 {[%clk 0:02:52.8]} 19. Ng5 {[%clk 0:02:01.6]} 19... Re8
{[%clk 0:02:34.2]} 20. Nge4 {[%clk 0:01:51.8]} 20... Nxe4 {[%clk 0:02:27.7]} 21.
Nxe4 {[%clk 0:01:51.8]} 21... f5 {[%clk 0:02:28]} 22. Nxd6 {[%clk 0:01:36.7]}
22... Rxe1+ {[%clk 0:02:27.7]} 23. Qxe1 {[%clk 0:01:37.6]} 23... Bxd5 {[%clk
0:02:28.4]} 24. Qa5 {[%clk 0:01:16]} 24... Bd4 {[%clk 0:02:28.3]} 25. Nb5 {[%clk
0:01:15.3]} 25... Bxb2 {[%clk 0:02:20.6]} 26. Nxa7 {[%clk 0:01:11.5]} 26... Bf6
{[%clk 0:01:20.4]} 27. Qxc5 {[%clk 0:01:01.6]} 27... Bxa2 {[%clk 0:01:20.6]} 28.
Nc6 {[%clk 0:00:53]} 28... Bd5 {[%clk 0:01:20.1]} 29. Nb4 {[%clk 0:00:36.3]}
29... Be4 {[%clk 0:01:17.9]} 30. Qc4+ {[%clk 0:00:33.2]} 30... Kg7 {[%clk
0:01:18.3]} 31. Qc7 {[%clk 0:00:28.7]} 31... Qxc7 {[%clk 0:01:11.4]} 32. Bxc7
{[%clk 0:00:29.6]} 32... Bc3 {[%clk 0:01:11.8]} 33. Na2 {[%clk 0:00:28.6]} 33...
Bd2 {[%clk 0:01:12]} 34. Be5+ {[%clk 0:00:28.3]} 34... Kf7 {[%clk 0:01:11.5]}
35. Nc3 {[%clk 0:00:28.5]} 35... Ke6 {[%clk 0:01:09.6]} 36. Nxe4 {[%clk
0:00:26.7]} 36... fxe4 {[%clk 0:01:09.8]} 37. Bh8 {[%clk 0:00:22.9]} 37... Kf5
{[%clk 0:01:09.6]} 38. Kf1 {[%clk 0:00:22.5]} 38... h5 {[%clk 0:01:09.5]} 39.
Ke2 {[%clk 0:00:22.5]} 39... Bf4 {[%clk 0:01:10.1]} 40. Bd4 {[%clk 0:00:22.6]}
40... g5 {[%clk 0:01:10]} 41. f3 {[%clk 0:00:21.4]} 41... exf3+ {[%clk
0:01:09.8]} 42. Kxf3 {[%clk 0:00:22]} 42... g4+ {[%clk 0:01:10.2]} 43. hxg4+
{[%clk 0:00:22.3]} 43... hxg4+ {[%clk 0:01:10.7]} 44. Ke2 {[%clk 0:00:22.2]}
44... Ke4 {[%clk 0:01:10.8]} 45. Bf2 {[%clk 0:00:22.1]} 1/2-1/2

[Event "*** Titled Tuesday Blitz"]
[Site "Chess.com"]
[Date "2020.10.27"]
[Round "11"]
[White "babyking1205"]
[Black "boasovietica"]
[Result "1-0"]
[WhiteElo "2661"]
[BlackElo "2508"]
[TimeControl "180+1"]
[EndTime "12:05:03 PDT"]
[Termination "babyking1205 won on time"]

1. e4 {[%clk 0:03:00.9]} 1... e5 {[%clk 0:02:59.5]} 2. Nf3 {[%clk 0:03:00.6]}
2... Nc6 {[%clk 0:02:59.2]} 3. d4 {[%clk 0:03:01.1]} 3... exd4 {[%clk
0:02:58.7]} 4. Nxd4 {[%clk 0:03:02]} 4... Bb4+ {[%clk 0:02:58.8]} 5. c3 {[%clk
0:02:59.9]} 5... Bc5 {[%clk 0:02:59]} 6. Nb3 {[%clk 0:03:00.3]} 6... Bb6 {[%clk
0:02:58.1]} 7. Bd3 {[%clk 0:02:58.3]} 7... Nf6 {[%clk 0:02:55.4]} 8. O-O {[%clk
0:02:57.2]} 8... O-O {[%clk 0:02:55.8]} 9. Bc2 {[%clk 0:02:57.3]} 9... Re8
{[%clk 0:02:54.5]} 10. N1d2 {[%clk 0:02:57.6]} 10... d5 {[%clk 0:02:53.4]} 11.
exd5 {[%clk 0:02:57.1]} 11... Qxd5 {[%clk 0:02:49.8]} 12. Ne4 {[%clk 0:02:56.5]}
12... Qe5 {[%clk 0:02:14.4]} 13. Nxf6+ {[%clk 0:02:54.7]} 13... Qxf6 {[%clk
0:02:12.7]} 14. a4 {[%clk 0:02:53.3]} 14... a6 {[%clk 0:02:06.2]} 15. a5 {[%clk
0:02:52.6]} 15... Ba7 {[%clk 0:02:06.2]} 16. Qd3 {[%clk 0:02:49.9]} 16... g6
{[%clk 0:01:59.7]} 17. Be3 {[%clk 0:02:49.5]} 17... Bf5 {[%clk 0:01:49.6]} 18.
Qd2 {[%clk 0:02:46.2]} 18... Rad8 {[%clk 0:01:44.4]} 19. Qc1 {[%clk 0:02:43.2]}
19... Bxc2 {[%clk 0:01:28.3]} 20. Qxc2 {[%clk 0:02:44.1]} 20... Bxe3 {[%clk
0:01:26]} 21. fxe3 {[%clk 0:02:44.1]} 21... Qe6 {[%clk 0:00:54]} 22. Rae1 {[%clk
0:02:42.6]} 22... Ne5 {[%clk 0:00:48.3]} 23. Nd4 {[%clk 0:02:41.9]} 23... Qd6
{[%clk 0:00:41.4]} 24. Rd1 {[%clk 0:02:38.2]} 24... Ng4 {[%clk 0:00:35.2]} 25.
Nf3 {[%clk 0:02:07.1]} 25... Qc5 {[%clk 0:00:35.3]} 26. Rxd8 {[%clk 0:02:05.3]}
26... Qxe3+ {[%clk 0:00:32.7]} 27. Kh1 {[%clk 0:02:04]} 27... Rxd8 {[%clk
0:00:32.8]} 28. h3 {[%clk 0:02:03.5]} 28... Nf6 {[%clk 0:00:24.9]} 29. Qb3
{[%clk 0:02:03.1]} 29... Ne4 {[%clk 0:00:24.2]} 30. Kh2 {[%clk 0:01:57.3]} 30...
Qf4+ {[%clk 0:00:23.9]} 31. Kg1 {[%clk 0:01:57.5]} 31... Ng3 {[%clk 0:00:22.7]}
32. Re1 {[%clk 0:01:57.7]} 32... Kg7 {[%clk 0:00:16.6]} 33. Qxb7 {[%clk
0:01:56.5]} 33... Qd6 {[%clk 0:00:12.6]} 34. Qa7 {[%clk 0:01:51.6]} 34... Rd7
{[%clk 0:00:10.2]} 35. Qf2 {[%clk 0:01:51.2]} 35... Nf5 {[%clk 0:00:09.7]} 36.
b4 {[%clk 0:01:50]} 36... Re7 {[%clk 0:00:08.6]} 37. g4 {[%clk 0:01:44.8]} 37...
Rxe1+ {[%clk 0:00:07.8]} 38. Qxe1 {[%clk 0:01:45.7]} 38... Ne7 {[%clk
0:00:07.6]} 39. Qe5+ {[%clk 0:01:45.2]} 39... Qxe5 {[%clk 0:00:07.9]} 40. Nxe5
{[%clk 0:01:46.1]} 40... Nd5 {[%clk 0:00:08.1]} 41. Nc6 {[%clk 0:01:42]} 41...
Nxc3 {[%clk 0:00:08.1]} 42. Nb8 {[%clk 0:01:42.5]} 42... Nd5 {[%clk 0:00:07.3]}
43. Nxa6 {[%clk 0:01:42.7]} 43... Kf6 {[%clk 0:00:07.4]} 44. b5 {[%clk
0:01:42.3]} 44... Ke5 {[%clk 0:00:07.1]} 45. Nc5 {[%clk 0:01:32]} 45... Kd4
{[%clk 0:00:06.2]} 46. Nd7 {[%clk 0:01:29.1]} 46... Kc4 {[%clk 0:00:05.4]} 47.
a6 {[%clk 0:01:29.6]} 1-0

[Event "*** Titled Tuesday Blitz"]
[Site "Chess.com"]
[Date "2020.10.27"]
[Round "11"]
[White "Gloomy_Wanderer"]
[Black "Mikhail_Golubev"]
[Result "1-0"]
[WhiteElo "2699"]
[BlackElo "2523"]
[TimeControl "180+1"]
[EndTime "12:05:13 PDT"]
[Termination "Gloomy_Wanderer won on time"]

1. d4 {[%clk 0:03:00.9]} 1... Nf6 {[%clk 0:02:58.5]} 2. Nf3 {[%clk 0:03:00.5]}
2... d6 {[%clk 0:02:58.3]} 3. c4 {[%clk 0:03:00.6]} 3... g6 {[%clk 0:02:58.6]}
4. g3 {[%clk 0:03:00.3]} 4... Bg7 {[%clk 0:02:59]} 5. Bg2 {[%clk 0:03:00.3]}
5... O-O {[%clk 0:02:59.5]} 6. O-O {[%clk 0:03:00.3]} 6... Nbd7 {[%clk
0:02:59.5]} 7. Nc3 {[%clk 0:03:00.1]} 7... e5 {[%clk 0:02:59.5]} 8. e4 {[%clk
0:03:00.3]} 8... exd4 {[%clk 0:02:59.6]} 9. Nxd4 {[%clk 0:03:00.4]} 9... Re8
{[%clk 0:03:00.2]} 10. h3 {[%clk 0:02:59.5]} 10... Nc5 {[%clk 0:02:58.4]} 11.
Re1 {[%clk 0:02:58]} 11... Bd7 {[%clk 0:02:58.8]} 12. Bg5 {[%clk 0:02:45.8]}
12... h6 {[%clk 0:02:57.1]} 13. Bf4 {[%clk 0:02:46.1]} 13... Ne6 {[%clk
0:02:46.9]} 14. Be3 {[%clk 0:02:44.4]} 14... Nxd4 {[%clk 0:02:41.6]} 15. Bxd4
{[%clk 0:02:45.3]} 15... Be6 {[%clk 0:02:42]} 16. Qd3 {[%clk 0:02:36.4]} 16...
c5 {[%clk 0:02:03.3]} 17. Be3 {[%clk 0:02:33.3]} 17... Nd7 {[%clk 0:02:02.8]}
18. b3 {[%clk 0:02:28.2]} 18... Ne5 {[%clk 0:02:02.6]} 19. Qc2 {[%clk
0:02:27.7]} 19... Nc6 {[%clk 0:01:58]} 20. Rad1 {[%clk 0:02:24.1]} 20... Nd4
{[%clk 0:01:56.9]} 21. Qc1 {[%clk 0:02:24.1]} 21... Kh7 {[%clk 0:01:54.5]} 22.
Bf4 {[%clk 0:02:04.9]} 22... Qd7 {[%clk 0:01:44.6]} 23. Kh2 {[%clk 0:02:01.4]}
23... a6 {[%clk 0:01:41.8]} 24. Ne2 {[%clk 0:01:57.9]} 24... b5 {[%clk
0:01:39.1]} 25. Nxd4 {[%clk 0:01:53.6]} 25... cxd4 {[%clk 0:01:33.5]} 26. e5
{[%clk 0:01:36.6]} 26... dxe5 {[%clk 0:01:33.4]} 27. Bxe5 {[%clk 0:01:25.9]}
27... Bxe5 {[%clk 0:01:00.6]} 28. Bxa8 {[%clk 0:01:24.5]} 28... Bxh3 {[%clk
0:01:00.5]} 29. Bd5 {[%clk 0:01:17.2]} 29... Bg4 {[%clk 0:00:27]} 30. Rd2 {[%clk
0:01:10.8]} 30... bxc4 {[%clk 0:00:20.9]} 31. bxc4 {[%clk 0:01:10.4]} 31... Qf5
{[%clk 0:00:20]} 32. Qb1 {[%clk 0:00:53.3]} 32... Qh5+ {[%clk 0:00:17.6]} 33.
Kg1 {[%clk 0:00:53.5]} 33... Bf5 {[%clk 0:00:09.2]} 34. Qb7 {[%clk 0:00:47.1]}
1-0

[Event "*** Titled Tuesday Blitz"]
[Site "Chess.com"]
[Date "2020.10.27"]
[Round "11"]
[White "maxip32"]
[Black "Corre_por_tu_vida"]
[Result "0-1"]
[WhiteElo "2413"]
[BlackElo "2563"]
[TimeControl "180+1"]
[EndTime "12:05:20 PDT"]
[Termination "Corre_por_tu_vida won by resignation"]

1. e4 {[%clk 0:03:00.9]} 1... c5 {[%clk 0:01:49.5]} 2. Nf3 {[%clk 0:02:59.4]}
2... Nc6 {[%clk 0:01:47.9]} 3. d4 {[%clk 0:02:56.7]} 3... cxd4 {[%clk
0:01:46.7]} 4. Nxd4 {[%clk 0:02:57.6]} 4... Nf6 {[%clk 0:01:46.9]} 5. Nc3 {[%clk
0:02:57.5]} 5... e5 {[%clk 0:01:47]} 6. Ndb5 {[%clk 0:02:57.4]} 6... d6 {[%clk
0:01:46.7]} 7. Nd5 {[%clk 0:02:52.5]} 7... Nxd5 {[%clk 0:01:45.8]} 8. exd5
{[%clk 0:02:53.4]} 8... Ne7 {[%clk 0:01:46.1]} 9. c4 {[%clk 0:02:52.3]} 9... Nf5
{[%clk 0:01:45.5]} 10. Be2 {[%clk 0:02:51.8]} 10... Be7 {[%clk 0:01:43.2]} 11.
O-O {[%clk 0:02:50.1]} 11... O-O {[%clk 0:01:43]} 12. a4 {[%clk 0:02:13.1]}
12... a6 {[%clk 0:01:36.9]} 13. Nc3 {[%clk 0:02:10.4]} 13... a5 {[%clk
0:01:35.7]} 14. Be3 {[%clk 0:02:01.1]} 14... Nxe3 {[%clk 0:01:33]} 15. fxe3
{[%clk 0:02:02]} 15... Qb6 {[%clk 0:01:32.2]} 16. Qd2 {[%clk 0:01:57.1]} 16...
Bg5 {[%clk 0:01:31.4]} 17. Rf3 {[%clk 0:01:56.9]} 17... f5 {[%clk 0:01:30.2]}
18. Kh1 {[%clk 0:01:52.2]} 18... e4 {[%clk 0:01:25.5]} 19. Rg3 {[%clk
0:01:50.9]} 19... Bf6 {[%clk 0:01:13.1]} 20. Nb5 {[%clk 0:01:47.2]} 20... Be5
{[%clk 0:01:09]} 21. Rh3 {[%clk 0:01:33.3]} 21... f4 {[%clk 0:01:05.4]} 22. Rh4
{[%clk 0:01:23]} 22... fxe3 {[%clk 0:01:00.7]} 23. Qc2 {[%clk 0:01:18.8]} 23...
Rf2 {[%clk 0:00:58.7]} 24. Rf1 {[%clk 0:00:59.9]} 24... Bf5 {[%clk 0:00:56]} 25.
c5 {[%clk 0:00:27.4]} 25... Qxc5 {[%clk 0:00:52.1]} 26. Qxc5 {[%clk 0:00:26.9]}
26... dxc5 {[%clk 0:00:53]} 27. Bc4 {[%clk 0:00:27]} 27... e2 {[%clk 0:00:43.5]}
28. Re1 {[%clk 0:00:20]} 28... Rf8 {[%clk 0:00:37.2]} 29. Bxe2 {[%clk
0:00:18.3]} 29... g5 {[%clk 0:00:32.2]} 30. Rh5 {[%clk 0:00:17.7]} 30... Bg6
{[%clk 0:00:31.9]} 0-1